Workbook

Sheet Setup
B15: # | C15: Participant Name
B16: 1 | C16: Dave
B17: 2 | C17: Bill
B18: 3 | C18: Jim
B19: 4 | C19: Emma
B20: 5
B21: 6
B22: 7
B23: 8
B24: 9
B25: 10

Sheet Expenses
A2: Date | B2: Description | C2: Paid By | D2: Amount | E2: Split Between | F2: Include? | G2: #of People | H2: Amount per Person
A3: 2026-01-04 | B3: Dinner | C3: Dave | D3: 120 | E3: Dave, Jim | F3: Yes | G3: =LEN(Table2[[#This Row],[Split Between]])-LEN(SUBSTITUTE(Table2[[#This Row],[Split Between]],",",""))+1 -> 2 | H3: =Table2[[#This Row],[Amount]]/Table2[[#This Row],['#of People]] -> 60
A4: 2026-02-04 | B4: Taxi | C4: Bill | D4: 45 | E4: Jim, Emma | F4: Yes | G4: =LEN(Table2[[#This Row],[Split Between]])-LEN(SUBSTITUTE(Table2[[#This Row],[Split Between]],",",""))+1 -> 2 | H4: =Table2[[#This Row],[Amount]]/Table2[[#This Row],['#of People]] -> 22.5
A5: 2026-03-04 | B5: Groceries | C5: Jim | D5: 500 | E5: Bill, Dave, Emma | F5: Yes | G5: =LEN(Table2[[#This Row],[Split Between]])-LEN(SUBSTITUTE(Table2[[#This Row],[Split Between]],",",""))+1 -> 3 | H5: =Table2[[#This Row],[Amount]]/Table2[[#This Row],['#of People]] -> 166.6666667
A6: 2026-04-04 | B6: Coffee | C6: Dave | D6: 18 | E6: Dave, Bill, Jim, Emma | F6: Yes | G6: =LEN(Table2[[#This Row],[Split Between]])-LEN(SUBSTITUTE(Table2[[#This Row],[Split Between]],",",""))+1 -> 4 | H6: =Table2[[#This Row],[Amount]]/Table2[[#This Row],['#of People]] -> 4.5
A7: 2026-05-04 | B7: Hotel | C7: Dave | D7: 300 | E7: Dave, Bill, Jim | F7: Yes | G7: =LEN(Table2[[#This Row],[Split Between]])-LEN(SUBSTITUTE(Table2[[#This Row],[Split Between]],",",""))+1 -> 3 | H7: =Table2[[#This Row],[Amount]]/Table2[[#This Row],['#of People]] -> 100
A8: 2026-06-06 | B8: Movie | C8: Bill | D8: 125 | E8: Dave, Bill, Jim, Emma | F8: Yes | G8: =LEN(Table2[[#This Row],[Split Between]])-LEN(SUBSTITUTE(Table2[[#This Row],[Split Between]],",",""))+1 -> 4 | H8: =Table2[[#This Row],[Amount]]/Table2[[#This Row],['#of People]] -> 31.25

Sheet Settlements
B14: From | D14: To | F14: Amount
B15: Emma | D15: Jim | F15: 224.92
B16: Hidden | D16: Upgrade to View
B17: Hidden | D17: Upgrade to View

Sheet BESetup (hidden)
A1: List for Expenses | C1: File Type - Paid for no breaks | E1: Currency | G1: Calculation | H1: Amount Paid | I1: Amount Participated | J1: Delta | L1: Value | M1: Label | N1: Label | R1: Settlements Text | X1: Names | Z1: Bill
A2: All | C2: Free | E2: USD | G2: =_xlfn._xlws.SORT(_xlfn._xlws.FILTER(Setup!C16:C25,Setup!C16:C25<>"")) -> Bill | H2: =SUMIFS(Table2[Amount],Table2[Include?],"Yes",Table2[Paid By],$G2) -> 170 | I2: =IF(G2>0,SUMIFS(Table2[Amount per Person],Table2[Include?],"Yes",Table2[Split Between],"*"&$G2&"*"),0) -> 302.4166667 | J2: =H2-I2 -> -132.4166667 | L2: =SUM(H:H) -> 1108 | M2: Total Expenses | N2: =M2&" - "&TEXT(L2,"$#,##") -> Total Expenses - $1,108 | R2: Showing 1 of 3 settlement transactions
A3: =_xlfn._xlws.SORT(_xlfn._xlws.FILTER(Setup!C16:C25,Setup!C16:C25<>"")) -> Bill | E3: GBP | G3: Dave | H3: =SUMIFS(Table2[Amount],Table2[Include?],"Yes",Table2[Paid By],$G3) -> 438 | I3: =IF(G3>0,SUMIFS(Table2[Amount per Person],Table2[Include?],"Yes",Table2[Split Between],"*"&$G3&"*"),0) -> 362.4166667 | J3: =H3-I3 -> 75.58333333 | L3: =COUNTA(G:G)-1 -> 4 | M3: Participants | N3: =M3&" - "&L3 -> Participants - 4 | R3: 2 additional transactions hidden
A4: Dave | E4: EU | G4: Emma | H4: =SUMIFS(Table2[Amount],Table2[Include?],"Yes",Table2[Paid By],$G4) -> 0 | I4: =IF(G4>0,SUMIFS(Table2[Amount per Person],Table2[Include?],"Yes",Table2[Split Between],"*"&$G4&"*"),0) -> 224.9166667 | J4: -224.9166667 | L4: =COUNTA(Table2[Amount]) -> 6 | M4: Expenses Logged | N4: =M4&" - "&L4 -> Expenses Logged - 6 | R4: Transactions required : 3
A5: Emma | G5: Jim | H5: =SUMIFS(Table2[Amount],Table2[Include?],"Yes",Table2[Paid By],$G5) -> 500 | I5: =IF(G5>0,SUMIFS(Table2[Amount per Person],Table2[Include?],"Yes",Table2[Split Between],"*"&$G5&"*"),0) -> 218.25 | J5: 281.75 | L5: =ROUND(L2/L4,2) -> 184.67 | M5: Average Expense | N5: =M5&" - "&TEXT(L5,"$#,##") -> Average Expense - $185
A6: Jim | H6: =SUMIFS(Table2[Amount],Table2[Include?],"Yes",Table2[Paid By],$G6) -> 0 | I6: =IF(G6>0,SUMIFS(Table2[Amount per Person],Table2[Include?],"Yes",Table2[Split Between],"*"&$G6&"*"),0) -> 0 | J6: 0
H7: =SUMIFS(Table2[Amount],Table2[Include?],"Yes",Table2[Paid By],$G7) -> 0 | I7: =IF(G7>0,SUMIFS(Table2[Amount per Person],Table2[Include?],"Yes",Table2[Split Between],"*"&$G7&"*"),0) -> 0 | J7: 0
H8: =SUMIFS(Table2[Amount],Table2[Include?],"Yes",Table2[Paid By],$G8) -> 0 | I8: =IF(G8>0,SUMIFS(Table2[Amount per Person],Table2[Include?],"Yes",Table2[Split Between],"*"&$G8&"*"),0) -> 0 | J8: 0
H9: =SUMIFS(Table2[Amount],Table2[Include?],"Yes",Table2[Paid By],$G9) -> 0 | I9: =IF(G9>0,SUMIFS(Table2[Amount per Person],Table2[Include?],"Yes",Table2[Split Between],"*"&$G9&"*"),0) -> 0 | J9: 0
H10: =SUMIFS(Table2[Amount],Table2[Include?],"Yes",Table2[Paid By],$G10) -> 0 | I10: =IF(G10>0,SUMIFS(Table2[Amount per Person],Table2[Include?],"Yes",Table2[Split Between],"*"&$G10&"*"),0) -> 0 | J10: 0
H11: =SUMIFS(Table2[Amount],Table2[Include?],"Yes",Table2[Paid By],$G11) -> 0 | I11: =IF(G11>0,SUMIFS(Table2[Amount per Person],Table2[Include?],"Yes",Table2[Split Between],"*"&$G11&"*"),0) -> 0 | J11: 0
H12: =SUMIFS(Table2[Amount],Table2[Include?],"Yes",Table2[Paid By],$G12) -> 0 | I12: =IF(G12>0,SUMIFS(Table2[Amount per Person],Table2[Include?],"Yes",Table2[Split Between],"*"&$G12&"*"),0) -> 0 | J12: 0
H13: =SUMIFS(Table2[Amount],Table2[Include?],"Yes",Table2[Paid By],$G13) -> 0 | I13: =IF(G13>0,SUMIFS(Table2[Amount per Person],Table2[Include?],"Yes",Table2[Split Between],"*"&$G13&"*"),0) -> 0 | J13: 0
H14: =SUMIFS(Table2[Amount],Table2[Include?],"Yes",Table2[Paid By],$G14) -> 0 | I14: =IF(G14>0,SUMIFS(Table2[Amount per Person],Table2[Include?],"Yes",Table2[Split Between],"*"&$G14&"*"),0) -> 0 | J14: 0
H15: =SUMIFS(Table2[Amount],Table2[Include?],"Yes",Table2[Paid By],$G15) -> 0 | I15: =IF(G15>0,SUMIFS(Table2[Amount per Person],Table2[Include?],"Yes",Table2[Split Between],"*"&$G15&"*"),0) -> 0 | J15: 0
H16: =SUMIFS(Table2[Amount],Table2[Include?],"Yes",Table2[Paid By],$G16) -> 0 | I16: =IF(G16>0,SUMIFS(Table2[Amount per Person],Table2[Include?],"Yes",Table2[Split Between],"*"&$G16&"*"),0) -> 0 | J16: 0
H17: =SUMIFS(Table2[Amount],Table2[Include?],"Yes",Table2[Paid By],$G17) -> 0 | I17: =IF(G17>0,SUMIFS(Table2[Amount per Person],Table2[Include?],"Yes",Table2[Split Between],"*"&$G17&"*"),0) -> 0 | J17: 0
H18: =SUMIFS(Table2[Amount],Table2[Include?],"Yes",Table2[Paid By],$G18) -> 0 | I18: =IF(G18>0,SUMIFS(Table2[Amount per Person],Table2[Include?],"Yes",Table2[Split Between],"*"&$G18&"*"),0) -> 0 | J18: 0
H19: =SUMIFS(Table2[Amount],Table2[Include?],"Yes",Table2[Paid By],$G19) -> 0 | I19: =IF(G19>0,SUMIFS(Table2[Amount per Person],Table2[Include?],"Yes",Table2[Split Between],"*"&$G19&"*"),0) -> 0 | J19: 0
H20: =SUMIFS(Table2[Amount],Table2[Include?],"Yes",Table2[Paid By],$G20) -> 0 | I20: =IF(G20>0,SUMIFS(Table2[Amount per Person],Table2[Include?],"Yes",Table2[Split Between],"*"&$G20&"*"),0) -> 0 | J20: 0
H21: =SUMIFS(Table2[Amount],Table2[Include?],"Yes",Table2[Paid By],$G21) -> 0 | I21: =IF(G21>0,SUMIFS(Table2[Amount per Person],Table2[Include?],"Yes",Table2[Split Between],"*"&$G21&"*"),0) -> 0 | J21: 0
H22: =SUMIFS(Table2[Amount],Table2[Include?],"Yes",Table2[Paid By],$G22) -> 0 | I22: =IF(G22>0,SUMIFS(Table2[Amount per Person],Table2[Include?],"Yes",Table2[Split Between],"*"&$G22&"*"),0) -> 0 | J22: 0
H23: =SUMIFS(Table2[Amount],Table2[Include?],"Yes",Table2[Paid By],$G23) -> 0 | I23: =IF(G23>0,SUMIFS(Table2[Amount per Person],Table2[Include?],"Yes",Table2[Split Between],"*"&$G23&"*"),0) -> 0 | J23: 0
H24: =SUMIFS(Table2[Amount],Table2[Include?],"Yes",Table2[Paid By],$G24) -> 0 | I24: =IF(G24>0,SUMIFS(Table2[Amount per Person],Table2[Include?],"Yes",Table2[Split Between],"*"&$G24&"*"),0) -> 0 | J24: 0
H25: =SUMIFS(Table2[Amount],Table2[Include?],"Yes",Table2[Paid By],$G25) -> 0 | I25: =IF(G25>0,SUMIFS(Table2[Amount per Person],Table2[Include?],"Yes",Table2[Split Between],"*"&$G25&"*"),0) -> 0 | J25: 0
H26: =SUMIFS(Table2[Amount],Table2[Include?],"Yes",Table2[Paid By],$G26) -> 0 | I26: =IF(G26>0,SUMIFS(Table2[Amount per Person],Table2[Include?],"Yes",Table2[Split Between],"*"&$G26&"*"),0) -> 0 | J26: 0
H27: =SUMIFS(Table2[Amount],Table2[Include?],"Yes",Table2[Paid By],$G27) -> 0 | I27: =IF(G27>0,SUMIFS(Table2[Amount per Person],Table2[Include?],"Yes",Table2[Split Between],"*"&$G27&"*"),0) -> 0 | J27: 0
H28: =SUMIFS(Table2[Amount],Table2[Include?],"Yes",Table2[Paid By],$G28) -> 0 | I28: =IF(G28>0,SUMIFS(Table2[Amount per Person],Table2[Include?],"Yes",Table2[Split Between],"*"&$G28&"*"),0) -> 0 | J28: 0
H29: =SUMIFS(Table2[Amount],Table2[Include?],"Yes",Table2[Paid By],$G29) -> 0 | I29: =IF(G29>0,SUMIFS(Table2[Amount per Person],Table2[Include?],"Yes",Table2[Split Between],"*"&$G29&"*"),0) -> 0 | J29: 0
H30: =SUMIFS(Table2[Amount],Table2[Include?],"Yes",Table2[Paid By],$G30) -> 0 | I30: =IF(G30>0,SUMIFS(Table2[Amount per Person],Table2[Include?],"Yes",Table2[Split Between],"*"&$G30&"*"),0) -> 0 | J30: 0
H31: =SUMIFS(Table2[Amount],Table2[Include?],"Yes",Table2[Paid By],$G31) -> 0 | I31: =IF(G31>0,SUMIFS(Table2[Amount per Person],Table2[Include?],"Yes",Table2[Split Between],"*"&$G31&"*"),0) -> 0 | J31: 0
H32: =SUMIFS(Table2[Amount],Table2[Include?],"Yes",Table2[Paid By],$G32) -> 0 | I32: =IF(G32>0,SUMIFS(Table2[Amount per Person],Table2[Include?],"Yes",Table2[Split Between],"*"&$G32&"*"),0) -> 0 | J32: 0
H33: =SUMIFS(Table2[Amount],Table2[Include?],"Yes",Table2[Paid By],$G33) -> 0 | I33: =IF(G33>0,SUMIFS(Table2[Amount per Person],Table2[Include?],"Yes",Table2[Split Between],"*"&$G33&"*"),0) -> 0 | J33: 0
H34: =SUMIFS(Table2[Amount],Table2[Include?],"Yes",Table2[Paid By],$G34) -> 0 | I34: =IF(G34>0,SUMIFS(Table2[Amount per Person],Table2[Include?],"Yes",Table2[Split Between],"*"&$G34&"*"),0) -> 0 | J34: 0
H35: =SUMIFS(Table2[Amount],Table2[Include?],"Yes",Table2[Paid By],$G35) -> 0 | I35: =IF(G35>0,SUMIFS(Table2[Amount per Person],Table2[Include?],"Yes",Table2[Split Between],"*"&$G35&"*"),0) -> 0 | J35: 0
H36: =SUMIFS(Table2[Amount],Table2[Include?],"Yes",Table2[Paid By],$G36) -> 0 | I36: =IF(G36>0,SUMIFS(Table2[Amount per Person],Table2[Include?],"Yes",Table2[Split Between],"*"&$G36&"*"),0) -> 0 | J36: 0
H37: =SUMIFS(Table2[Amount],Table2[Include?],"Yes",Table2[Paid By],$G37) -> 0 | I37: =IF(G37>0,SUMIFS(Table2[Amount per Person],Table2[Include?],"Yes",Table2[Split Between],"*"&$G37&"*"),0) -> 0 | J37: 0
H38: =SUMIFS(Table2[Amount],Table2[Include?],"Yes",Table2[Paid By],$G38) -> 0 | I38: =IF(G38>0,SUMIFS(Table2[Amount per Person],Table2[Include?],"Yes",Table2[Split Between],"*"&$G38&"*"),0) -> 0 | J38: 0
H39: =SUMIFS(Table2[Amount],Table2[Include?],"Yes",Table2[Paid By],$G39) -> 0 | I39: =IF(G39>0,SUMIFS(Table2[Amount per Person],Table2[Include?],"Yes",Table2[Split Between],"*"&$G39&"*"),0) -> 0 | J39: 0
H40: =SUMIFS(Table2[Amount],Table2[Include?],"Yes",Table2[Paid By],$G40) -> 0 | I40: =IF(G40>0,SUMIFS(Table2[Amount per Person],Table2[Include?],"Yes",Table2[Split Between],"*"&$G40&"*"),0) -> 0 | J40: 0
H41: =SUMIFS(Table2[Amount],Table2[Include?],"Yes",Table2[Paid By],$G41) -> 0 | I41: =IF(G41>0,SUMIFS(Table2[Amount per Person],Table2[Include?],"Yes",Table2[Split Between],"*"&$G41&"*"),0) -> 0 | J41: 0
H42: =SUMIFS(Table2[Amount],Table2[Include?],"Yes",Table2[Paid By],$G42) -> 0 | I42: =IF(G42>0,SUMIFS(Table2[Amount per Person],Table2[Include?],"Yes",Table2[Split Between],"*"&$G42&"*"),0) -> 0 | J42: 0
H43: =SUMIFS(Table2[Amount],Table2[Include?],"Yes",Table2[Paid By],$G43) -> 0 | I43: =IF(G43>0,SUMIFS(Table2[Amount per Person],Table2[Include?],"Yes",Table2[Split Between],"*"&$G43&"*"),0) -> 0 | J43: 0
H44: =SUMIFS(Table2[Amount],Table2[Include?],"Yes",Table2[Paid By],$G44) -> 0 | I44: =IF(G44>0,SUMIFS(Table2[Amount per Person],Table2[Include?],"Yes",Table2[Split Between],"*"&$G44&"*"),0) -> 0 | J44: 0
H45: =SUMIFS(Table2[Amount],Table2[Include?],"Yes",Table2[Paid By],$G45) -> 0 | I45: =IF(G45>0,SUMIFS(Table2[Amount per Person],Table2[Include?],"Yes",Table2[Split Between],"*"&$G45&"*"),0) -> 0 | J45: 0
H46: =SUMIFS(Table2[Amount],Table2[Include?],"Yes",Table2[Paid By],$G46) -> 0 | I46: =IF(G46>0,SUMIFS(Table2[Amount per Person],Table2[Include?],"Yes",Table2[Split Between],"*"&$G46&"*"),0) -> 0 | J46: 0
H47: =SUMIFS(Table2[Amount],Table2[Include?],"Yes",Table2[Paid By],$G47) -> 0 | I47: =IF(G47>0,SUMIFS(Table2[Amount per Person],Table2[Include?],"Yes",Table2[Split Between],"*"&$G47&"*"),0) -> 0 | J47: 0
H48: =SUMIFS(Table2[Amount],Table2[Include?],"Yes",Table2[Paid By],$G48) -> 0 | I48: =IF(G48>0,SUMIFS(Table2[Amount per Person],Table2[Include?],"Yes",Table2[Split Between],"*"&$G48&"*"),0) -> 0 | J48: 0
H49: =SUMIFS(Table2[Amount],Table2[Include?],"Yes",Table2[Paid By],$G49) -> 0 | I49: =IF(G49>0,SUMIFS(Table2[Amount per Person],Table2[Include?],"Yes",Table2[Split Between],"*"&$G49&"*"),0) -> 0 | J49: 0
H50: =SUMIFS(Table2[Amount],Table2[Include?],"Yes",Table2[Paid By],$G50) -> 0 | I50: =IF(G50>0,SUMIFS(Table2[Amount per Person],Table2[Include?],"Yes",Table2[Split Between],"*"&$G50&"*"),0) -> 0 | J50: 0
H51: =SUMIFS(Table2[Amount],Table2[Include?],"Yes",Table2[Paid By],$G51) -> 0 | I51: =IF(G51>0,SUMIFS(Table2[Amount per Person],Table2[Include?],"Yes",Table2[Split Between],"*"&$G51&"*"),0) -> 0 | J51: 0
H52: =SUMIFS(Table2[Amount],Table2[Include?],"Yes",Table2[Paid By],$G52) -> 0 | I52: =IF(G52>0,SUMIFS(Table2[Amount per Person],Table2[Include?],"Yes",Table2[Split Between],"*"&$G52&"*"),0) -> 0 | J52: 0
H53: =SUMIFS(Table2[Amount],Table2[Include?],"Yes",Table2[Paid By],$G53) -> 0 | I53: =IF(G53>0,SUMIFS(Table2[Amount per Person],Table2[Include?],"Yes",Table2[Split Between],"*"&$G53&"*"),0) -> 0 | J53: 0
H54: =SUMIFS(Table2[Amount],Table2[Include?],"Yes",Table2[Paid By],$G54) -> 0 | I54: =IF(G54>0,SUMIFS(Table2[Amount per Person],Table2[Include?],"Yes",Table2[Split Between],"*"&$G54&"*"),0) -> 0 | J54: 0
H55: =SUMIFS(Table2[Amount],Table2[Include?],"Yes",Table2[Paid By],$G55) -> 0 | I55: =IF(G55>0,SUMIFS(Table2[Amount per Person],Table2[Include?],"Yes",Table2[Split Between],"*"&$G55&"*"),0) -> 0 | J55: 0
H56: =SUMIFS(Table2[Amount],Table2[Include?],"Yes",Table2[Paid By],$G56) -> 0 | I56: =IF(G56>0,SUMIFS(Table2[Amount per Person],Table2[Include?],"Yes",Table2[Split Between],"*"&$G56&"*"),0) -> 0 | J56: 0
H57: =SUMIFS(Table2[Amount],Table2[Include?],"Yes",Table2[Paid By],$G57) -> 0 | I57: =IF(G57>0,SUMIFS(Table2[Amount per Person],Table2[Include?],"Yes",Table2[Split Between],"*"&$G57&"*"),0) -> 0 | J57: 0
H58: =SUMIFS(Table2[Amount],Table2[Include?],"Yes",Table2[Paid By],$G58) -> 0 | I58: =IF(G58>0,SUMIFS(Table2[Amount per Person],Table2[Include?],"Yes",Table2[Split Between],"*"&$G58&"*"),0) -> 0 | J58: 0
H59: =SUMIFS(Table2[Amount],Table2[Include?],"Yes",Table2[Paid By],$G59) -> 0 | I59: =IF(G59>0,SUMIFS(Table2[Amount per Person],Table2[Include?],"Yes",Table2[Split Between],"*"&$G59&"*"),0) -> 0 | J59: 0
H60: =SUMIFS(Table2[Amount],Table2[Include?],"Yes",Table2[Paid By],$G60) -> 0 | I60: =IF(G60>0,SUMIFS(Table2[Amount per Person],Table2[Include?],"Yes",Table2[Split Between],"*"&$G60&"*"),0) -> 0 | J60: 0
H61: =SUMIFS(Table2[Amount],Table2[Include?],"Yes",Table2[Paid By],$G61) -> 0 | I61: =IF(G61>0,SUMIFS(Table2[Amount per Person],Table2[Include?],"Yes",Table2[Split Between],"*"&$G61&"*"),0) -> 0 | J61: 0
H62: =SUMIFS(Table2[Amount],Table2[Include?],"Yes",Table2[Paid By],$G62) -> 0 | I62: =IF(G62>0,SUMIFS(Table2[Amount per Person],Table2[Include?],"Yes",Table2[Split Between],"*"&$G62&"*"),0) -> 0 | J62: 0
H63: =SUMIFS(Table2[Amount],Table2[Include?],"Yes",Table2[Paid By],$G63) -> 0 | I63: =IF(G63>0,SUMIFS(Table2[Amount per Person],Table2[Include?],"Yes",Table2[Split Between],"*"&$G63&"*"),0) -> 0 | J63: 0
H64: =SUMIFS(Table2[Amount],Table2[Include?],"Yes",Table2[Paid By],$G64) -> 0 | I64: =IF(G64>0,SUMIFS(Table2[Amount per Person],Table2[Include?],"Yes",Table2[Split Between],"*"&$G64&"*"),0) -> 0 | J64: 0
H65: =SUMIFS(Table2[Amount],Table2[Include?],"Yes",Table2[Paid By],$G65) -> 0 | I65: =IF(G65>0,SUMIFS(Table2[Amount per Person],Table2[Include?],"Yes",Table2[Split Between],"*"&$G65&"*"),0) -> 0 | J65: 0
H66: =SUMIFS(Table2[Amount],Table2[Include?],"Yes",Table2[Paid By],$G66) -> 0 | I66: =IF(G66>0,SUMIFS(Table2[Amount per Person],Table2[Include?],"Yes",Table2[Split Between],"*"&$G66&"*"),0) -> 0 | J66: 0
H67: =SUMIFS(Table2[Amount],Table2[Include?],"Yes",Table2[Paid By],$G67) -> 0 | I67: =IF(G67>0,SUMIFS(Table2[Amount per Person],Table2[Include?],"Yes",Table2[Split Between],"*"&$G67&"*"),0) -> 0 | J67: =H67-I67 -> 0
H68: =SUMIFS(Table2[Amount],Table2[Include?],"Yes",Table2[Paid By],$G68) -> 0 | I68: =IF(G68>0,SUMIFS(Table2[Amount per Person],Table2[Include?],"Yes",Table2[Split Between],"*"&$G68&"*"),0) -> 0 | J68: 0
H69: =SUMIFS(Table2[Amount],Table2[Include?],"Yes",Table2[Paid By],$G69) -> 0 | I69: =IF(G69>0,SUMIFS(Table2[Amount per Person],Table2[Include?],"Yes",Table2[Split Between],"*"&$G69&"*"),0) -> 0 | J69: 0
H70: =SUMIFS(Table2[Amount],Table2[Include?],"Yes",Table2[Paid By],$G70) -> 0 | I70: =IF(G70>0,SUMIFS(Table2[Amount per Person],Table2[Include?],"Yes",Table2[Split Between],"*"&$G70&"*"),0) -> 0 | J70: 0
H71: =SUMIFS(Table2[Amount],Table2[Include?],"Yes",Table2[Paid By],$G71) -> 0 | I71: =IF(G71>0,SUMIFS(Table2[Amount per Person],Table2[Include?],"Yes",Table2[Split Between],"*"&$G71&"*"),0) -> 0 | J71: 0
H72: =SUMIFS(Table2[Amount],Table2[Include?],"Yes",Table2[Paid By],$G72) -> 0 | I72: =IF(G72>0,SUMIFS(Table2[Amount per Person],Table2[Include?],"Yes",Table2[Split Between],"*"&$G72&"*"),0) -> 0 | J72: 0
H73: =SUMIFS(Table2[Amount],Table2[Include?],"Yes",Table2[Paid By],$G73) -> 0 | I73: =IF(G73>0,SUMIFS(Table2[Amount per Person],Table2[Include?],"Yes",Table2[Split Between],"*"&$G73&"*"),0) -> 0 | J73: 0
H74: =SUMIFS(Table2[Amount],Table2[Include?],"Yes",Table2[Paid By],$G74) -> 0 | I74: =IF(G74>0,SUMIFS(Table2[Amount per Person],Table2[Include?],"Yes",Table2[Split Between],"*"&$G74&"*"),0) -> 0 | J74: 0
H75: =SUMIFS(Table2[Amount],Table2[Include?],"Yes",Table2[Paid By],$G75) -> 0 | I75: =IF(G75>0,SUMIFS(Table2[Amount per Person],Table2[Include?],"Yes",Table2[Split Between],"*"&$G75&"*"),0) -> 0 | J75: 0
H76: =SUMIFS(Table2[Amount],Table2[Include?],"Yes",Table2[Paid By],$G76) -> 0 | I76: =IF(G76>0,SUMIFS(Table2[Amount per Person],Table2[Include?],"Yes",Table2[Split Between],"*"&$G76&"*"),0) -> 0 | J76: 0
H77: =SUMIFS(Table2[Amount],Table2[Include?],"Yes",Table2[Paid By],$G77) -> 0 | I77: =IF(G77>0,SUMIFS(Table2[Amount per Person],Table2[Include?],"Yes",Table2[Split Between],"*"&$G77&"*"),0) -> 0 | J77: 0
H78: =SUMIFS(Table2[Amount],Table2[Include?],"Yes",Table2[Paid By],$G78) -> 0 | I78: =IF(G78>0,SUMIFS(Table2[Amount per Person],Table2[Include?],"Yes",Table2[Split Between],"*"&$G78&"*"),0) -> 0 | J78: 0
H79: =SUMIFS(Table2[Amount],Table2[Include?],"Yes",Table2[Paid By],$G79) -> 0 | I79: =IF(G79>0,SUMIFS(Table2[Amount per Person],Table2[Include?],"Yes",Table2[Split Between],"*"&$G79&"*"),0) -> 0 | J79: 0
H80: =SUMIFS(Table2[Amount],Table2[Include?],"Yes",Table2[Paid By],$G80) -> 0 | I80: =IF(G80>0,SUMIFS(Table2[Amount per Person],Table2[Include?],"Yes",Table2[Split Between],"*"&$G80&"*"),0) -> 0 | J80: 0
H81: =SUMIFS(Table2[Amount],Table2[Include?],"Yes",Table2[Paid By],$G81) -> 0 | I81: =IF(G81>0,SUMIFS(Table2[Amount per Person],Table2[Include?],"Yes",Table2[Split Between],"*"&$G81&"*"),0) -> 0 | J81: 0
H82: =SUMIFS(Table2[Amount],Table2[Include?],"Yes",Table2[Paid By],$G82) -> 0 | I82: =IF(G82>0,SUMIFS(Table2[Amount per Person],Table2[Include?],"Yes",Table2[Split Between],"*"&$G82&"*"),0) -> 0 | J82: 0
H83: =SUMIFS(Table2[Amount],Table2[Include?],"Yes",Table2[Paid By],$G83) -> 0 | I83: =IF(G83>0,SUMIFS(Table2[Amount per Person],Table2[Include?],"Yes",Table2[Split Between],"*"&$G83&"*"),0) -> 0 | J83: 0
H84: =SUMIFS(Table2[Amount],Table2[Include?],"Yes",Table2[Paid By],$G84) -> 0 | I84: =IF(G84>0,SUMIFS(Table2[Amount per Person],Table2[Include?],"Yes",Table2[Split Between],"*"&$G84&"*"),0) -> 0 | J84: 0
H85: =SUMIFS(Table2[Amount],Table2[Include?],"Yes",Table2[Paid By],$G85) -> 0 | I85: =IF(G85>0,SUMIFS(Table2[Amount per Person],Table2[Include?],"Yes",Table2[Split Between],"*"&$G85&"*"),0) -> 0 | J85: 0
H86: =SUMIFS(Table2[Amount],Table2[Include?],"Yes",Table2[Paid By],$G86) -> 0 | I86: =IF(G86>0,SUMIFS(Table2[Amount per Person],Table2[Include?],"Yes",Table2[Split Between],"*"&$G86&"*"),0) -> 0 | J86: 0
H87: =SUMIFS(Table2[Amount],Table2[Include?],"Yes",Table2[Paid By],$G87) -> 0 | I87: =IF(G87>0,SUMIFS(Table2[Amount per Person],Table2[Include?],"Yes",Table2[Split Between],"*"&$G87&"*"),0) -> 0 | J87: 0
H88: =SUMIFS(Table2[Amount],Table2[Include?],"Yes",Table2[Paid By],$G88) -> 0 | I88: =IF(G88>0,SUMIFS(Table2[Amount per Person],Table2[Include?],"Yes",Table2[Split Between],"*"&$G88&"*"),0) -> 0 | J88: 0
H89: =SUMIFS(Table2[Amount],Table2[Include?],"Yes",Table2[Paid By],$G89) -> 0 | I89: =IF(G89>0,SUMIFS(Table2[Amount per Person],Table2[Include?],"Yes",Table2[Split Between],"*"&$G89&"*"),0) -> 0 | J89: 0
H90: =SUMIFS(Table2[Amount],Table2[Include?],"Yes",Table2[Paid By],$G90) -> 0 | I90: =IF(G90>0,SUMIFS(Table2[Amount per Person],Table2[Include?],"Yes",Table2[Split Between],"*"&$G90&"*"),0) -> 0 | J90: 0
H91: =SUMIFS(Table2[Amount],Table2[Include?],"Yes",Table2[Paid By],$G91) -> 0 | I91: =IF(G91>0,SUMIFS(Table2[Amount per Person],Table2[Include?],"Yes",Table2[Split Between],"*"&$G91&"*"),0) -> 0 | J91: 0
H92: =SUMIFS(Table2[Amount],Table2[Include?],"Yes",Table2[Paid By],$G92) -> 0 | I92: =IF(G92>0,SUMIFS(Table2[Amount per Person],Table2[Include?],"Yes",Table2[Split Between],"*"&$G92&"*"),0) -> 0 | J92: 0
H93: =SUMIFS(Table2[Amount],Table2[Include?],"Yes",Table2[Paid By],$G93) -> 0 | I93: =IF(G93>0,SUMIFS(Table2[Amount per Person],Table2[Include?],"Yes",Table2[Split Between],"*"&$G93&"*"),0) -> 0 | J93: 0
H94: =SUMIFS(Table2[Amount],Table2[Include?],"Yes",Table2[Paid By],$G94) -> 0 | I94: =IF(G94>0,SUMIFS(Table2[Amount per Person],Table2[Include?],"Yes",Table2[Split Between],"*"&$G94&"*"),0) -> 0 | J94: 0
H95: =SUMIFS(Table2[Amount],Table2[Include?],"Yes",Table2[Paid By],$G95) -> 0 | I95: =IF(G95>0,SUMIFS(Table2[Amount per Person],Table2[Include?],"Yes",Table2[Split Between],"*"&$G95&"*"),0) -> 0 | J95: 0
H96: =SUMIFS(Table2[Amount],Table2[Include?],"Yes",Table2[Paid By],$G96) -> 0 | I96: =IF(G96>0,SUMIFS(Table2[Amount per Person],Table2[Include?],"Yes",Table2[Split Between],"*"&$G96&"*"),0) -> 0 | J96: 0
H97: =SUMIFS(Table2[Amount],Table2[Include?],"Yes",Table2[Paid By],$G97) -> 0 | I97: =IF(G97>0,SUMIFS(Table2[Amount per Person],Table2[Include?],"Yes",Table2[Split Between],"*"&$G97&"*"),0) -> 0 | J97: 0
H98: =SUMIFS(Table2[Amount],Table2[Include?],"Yes",Table2[Paid By],$G98) -> 0 | I98: =IF(G98>0,SUMIFS(Table2[Amount per Person],Table2[Include?],"Yes",Table2[Split Between],"*"&$G98&"*"),0) -> 0 | J98: 0
H99: =SUMIFS(Table2[Amount],Table2[Include?],"Yes",Table2[Paid By],$G99) -> 0 | I99: =IF(G99>0,SUMIFS(Table2[Amount per Person],Table2[Include?],"Yes",Table2[Split Between],"*"&$G99&"*"),0) -> 0 | J99: 0
H100: =SUMIFS(Table2[Amount],Table2[Include?],"Yes",Table2[Paid By],$G100) -> 0 | I100: =IF(G100>0,SUMIFS(Table2[Amount per Person],Table2[Include?],"Yes",Table2[Split Between],"*"&$G100&"*"),0) -> 0 | J100: 0
H101: =SUMIFS(Table2[Amount],Table2[Include?],"Yes",Table2[Paid By],$G101) -> 0 | I101: =IF(G101>0,SUMIFS(Table2[Amount per Person],Table2[Include?],"Yes",Table2[Split Between],"*"&$G101&"*"),0) -> 0 | J101: 0
H102: =SUMIFS(Table2[Amount],Table2[Include?],"Yes",Table2[Paid By],$G102) -> 0 | I102: =IF(G102>0,SUMIFS(Table2[Amount per Person],Table2[Include?],"Yes",Table2[Split Between],"*"&$G102&"*"),0) -> 0 | J102: 0
H103: =SUMIFS(Table2[Amount],Table2[Include?],"Yes",Table2[Paid By],$G103) -> 0 | I103: =IF(G103>0,SUMIFS(Table2[Amount per Person],Table2[Include?],"Yes",Table2[Split Between],"*"&$G103&"*"),0) -> 0 | J103: 0
H104: =SUMIFS(Table2[Amount],Table2[Include?],"Yes",Table2[Paid By],$G104) -> 0 | I104: =IF(G104>0,SUMIFS(Table2[Amount per Person],Table2[Include?],"Yes",Table2[Split Between],"*"&$G104&"*"),0) -> 0 | J104: 0
H105: =SUMIFS(Table2[Amount],Table2[Include?],"Yes",Table2[Paid By],$G105) -> 0 | I105: =IF(G105>0,SUMIFS(Table2[Amount per Person],Table2[Include?],"Yes",Table2[Split Between],"*"&$G105&"*"),0) -> 0 | J105: 0
H106: =SUMIFS(Table2[Amount],Table2[Include?],"Yes",Table2[Paid By],$G106) -> 0 | I106: =IF(G106>0,SUMIFS(Table2[Amount per Person],Table2[Include?],"Yes",Table2[Split Between],"*"&$G106&"*"),0) -> 0 | J106: 0
H107: =SUMIFS(Table2[Amount],Table2[Include?],"Yes",Table2[Paid By],$G107) -> 0 | I107: =IF(G107>0,SUMIFS(Table2[Amount per Person],Table2[Include?],"Yes",Table2[Split Between],"*"&$G107&"*"),0) -> 0 | J107: 0
H108: =SUMIFS(Table2[Amount],Table2[Include?],"Yes",Table2[Paid By],$G108) -> 0 | I108: =IF(G108>0,SUMIFS(Table2[Amount per Person],Table2[Include?],"Yes",Table2[Split Between],"*"&$G108&"*"),0) -> 0 | J108: 0
H109: =SUMIFS(Table2[Amount],Table2[Include?],"Yes",Table2[Paid By],$G109) -> 0 | I109: =IF(G109>0,SUMIFS(Table2[Amount per Person],Table2[Include?],"Yes",Table2[Split Between],"*"&$G109&"*"),0) -> 0 | J109: 0
H110: =SUMIFS(Table2[Amount],Table2[Include?],"Yes",Table2[Paid By],$G110) -> 0 | I110: =IF(G110>0,SUMIFS(Table2[Amount per Person],Table2[Include?],"Yes",Table2[Split Between],"*"&$G110&"*"),0) -> 0 | J110: 0
H111: =SUMIFS(Table2[Amount],Table2[Include?],"Yes",Table2[Paid By],$G111) -> 0 | I111: =IF(G111>0,SUMIFS(Table2[Amount per Person],Table2[Include?],"Yes",Table2[Split Between],"*"&$G111&"*"),0) -> 0 | J111: 0
H112: =SUMIFS(Table2[Amount],Table2[Include?],"Yes",Table2[Paid By],$G112) -> 0 | I112: =IF(G112>0,SUMIFS(Table2[Amount per Person],Table2[Include?],"Yes",Table2[Split Between],"*"&$G112&"*"),0) -> 0 | J112: 0
H113: =SUMIFS(Table2[Amount],Table2[Include?],"Yes",Table2[Paid By],$G113) -> 0 | I113: =IF(G113>0,SUMIFS(Table2[Amount per Person],Table2[Include?],"Yes",Table2[Split Between],"*"&$G113&"*"),0) -> 0 | J113: 0
H114: =SUMIFS(Table2[Amount],Table2[Include?],"Yes",Table2[Paid By],$G114) -> 0 | I114: =IF(G114>0,SUMIFS(Table2[Amount per Person],Table2[Include?],"Yes",Table2[Split Between],"*"&$G114&"*"),0) -> 0 | J114: 0
H115: =SUMIFS(Table2[Amount],Table2[Include?],"Yes",Table2[Paid By],$G115) -> 0 | I115: =IF(G115>0,SUMIFS(Table2[Amount per Person],Table2[Include?],"Yes",Table2[Split Between],"*"&$G115&"*"),0) -> 0 | J115: 0
H116: =SUMIFS(Table2[Amount],Table2[Include?],"Yes",Table2[Paid By],$G116) -> 0 | I116: =IF(G116>0,SUMIFS(Table2[Amount per Person],Table2[Include?],"Yes",Table2[Split Between],"*"&$G116&"*"),0) -> 0 | J116: 0
H117: =SUMIFS(Table2[Amount],Table2[Include?],"Yes",Table2[Paid By],$G117) -> 0 | I117: =IF(G117>0,SUMIFS(Table2[Amount per Person],Table2[Include?],"Yes",Table2[Split Between],"*"&$G117&"*"),0) -> 0 | J117: 0
H118: =SUMIFS(Table2[Amount],Table2[Include?],"Yes",Table2[Paid By],$G118) -> 0 | I118: =IF(G118>0,SUMIFS(Table2[Amount per Person],Table2[Include?],"Yes",Table2[Split Between],"*"&$G118&"*"),0) -> 0 | J118: 0
H119: =SUMIFS(Table2[Amount],Table2[Include?],"Yes",Table2[Paid By],$G119) -> 0 | I119: =IF(G119>0,SUMIFS(Table2[Amount per Person],Table2[Include?],"Yes",Table2[Split Between],"*"&$G119&"*"),0) -> 0 | J119: 0
H120: =SUMIFS(Table2[Amount],Table2[Include?],"Yes",Table2[Paid By],$G120) -> 0 | I120: =IF(G120>0,SUMIFS(Table2[Amount per Person],Table2[Include?],"Yes",Table2[Split Between],"*"&$G120&"*"),0) -> 0 | J120: 0
H121: =SUMIFS(Table2[Amount],Table2[Include?],"Yes",Table2[Paid By],$G121) -> 0 | I121: =IF(G121>0,SUMIFS(Table2[Amount per Person],Table2[Include?],"Yes",Table2[Split Between],"*"&$G121&"*"),0) -> 0 | J121: 0
H122: =SUMIFS(Table2[Amount],Table2[Include?],"Yes",Table2[Paid By],$G122) -> 0 | I122: =IF(G122>0,SUMIFS(Table2[Amount per Person],Table2[Include?],"Yes",Table2[Split Between],"*"&$G122&"*"),0) -> 0 | J122: 0
H123: =SUMIFS(Table2[Amount],Table2[Include?],"Yes",Table2[Paid By],$G123) -> 0 | I123: =IF(G123>0,SUMIFS(Table2[Amount per Person],Table2[Include?],"Yes",Table2[Split Between],"*"&$G123&"*"),0) -> 0 | J123: 0
H124: =SUMIFS(Table2[Amount],Table2[Include?],"Yes",Table2[Paid By],$G124) -> 0 | I124: =IF(G124>0,SUMIFS(Table2[Amount per Person],Table2[Include?],"Yes",Table2[Split Between],"*"&$G124&"*"),0) -> 0 | J124: 0
H125: =SUMIFS(Table2[Amount],Table2[Include?],"Yes",Table2[Paid By],$G125) -> 0 | I125: =IF(G125>0,SUMIFS(Table2[Amount per Person],Table2[Include?],"Yes",Table2[Split Between],"*"&$G125&"*"),0) -> 0 | J125: 0
H126: =SUMIFS(Table2[Amount],Table2[Include?],"Yes",Table2[Paid By],$G126) -> 0 | I126: =IF(G126>0,SUMIFS(Table2[Amount per Person],Table2[Include?],"Yes",Table2[Split Between],"*"&$G126&"*"),0) -> 0 | J126: 0
H127: =SUMIFS(Table2[Amount],Table2[Include?],"Yes",Table2[Paid By],$G127) -> 0 | I127: =IF(G127>0,SUMIFS(Table2[Amount per Person],Table2[Include?],"Yes",Table2[Split Between],"*"&$G127&"*"),0) -> 0 | J127: 0
H128: =SUMIFS(Table2[Amount],Table2[Include?],"Yes",Table2[Paid By],$G128) -> 0 | I128: =IF(G128>0,SUMIFS(Table2[Amount per Person],Table2[Include?],"Yes",Table2[Split Between],"*"&$G128&"*"),0) -> 0 | J128: 0
H129: =SUMIFS(Table2[Amount],Table2[Include?],"Yes",Table2[Paid By],$G129) -> 0 | I129: =IF(G129>0,SUMIFS(Table2[Amount per Person],Table2[Include?],"Yes",Table2[Split Between],"*"&$G129&"*"),0) -> 0 | J129: 0
H130: =SUMIFS(Table2[Amount],Table2[Include?],"Yes",Table2[Paid By],$G130) -> 0 | I130: =IF(G130>0,SUMIFS(Table2[Amount per Person],Table2[Include?],"Yes",Table2[Split Between],"*"&$G130&"*"),0) -> 0 | J130: 0
